bitfinex-derivatives/quotes_BTCF0:USTF0_20250609
["timestamp","ask_amount","ask_price","bid_price","bid_amount"]
[1749442839633,1.5595767,105710.0,105700.0,0.2136908]
[1749442839931,0.8379767,105710.0,105700.0,0.30204235]
[1749442840132,1.5595767,105710.0,105700.0,0.18425155]
[1749442841437,1.5595767,105710.0,105700.0,0.37337325]
[1749442843134,1.5595767,105710.0,105700.0,0.49116405]
[1749442843526,1.59536722,105710.0,105700.0,0.37337325]
[1749442843723,1.59576722,105710.0,105700.0,0.37337325]
[1749442844134,1.59576722,105710.0,105700.0,0.2850217]
[1749442845134,1.59576722,105710.0,105700.0,0.4028125]
[1749442846536,1.59576722,105710.0,105700.0,0.2850217]
[1749442847136,1.59576722,105710.0,105700.0,0.4028125]
[1749442847935,1.59536722,105710.0,105700.0,0.4028125]
[1749442848136,1.59576722,105710.0,105700.0,0.4028125]
[1749442857443,1.59576722,105710.0,105700.0,0.2850217]
[1749442858145,1.59576722,105710.0,105700.0,0.4028125]
[1749442860651,1.59576722,105710.0,105700.0,0.15278543]
[1749442860855,1.65946722,105710.0,105700.0,0.15278543]
[1749442861259,1.65946722,105710.0,105700.0,0.34190713]
[1749442862553,1.65946722,105710.0,105700.0,0.08848543]
[1749442862749,1.80690352,105710.0,105700.0,0.08848543]
[1749442862956,1.68976722,105710.0,105700.0,0.08848543]
[1749442868960,1.82449241,105710.0,105700.0,0.08848543]
[1749442869159,2.00069228,105710.0,105700.0,0.08848543]
[1749442869359,0.1891217,105700.0,105690.0,0.08848543]
[1749442869662,0.91768482,105700.0,105690.0,0.08735983]
[1749442870959,0.91768482,105700.0,105690.0,0.08835983]
[1749442871264,0.91768482,105700.0,105690.0,0.08935983]
[1749442876960,0.88598482,105700.0,105690.0,0.27849943]
[1749442877160,1.128358,105700.0,105690.0,0.30939943]
[1749442877468,1.128358,105700.0,105690.0,0.37109943]
[1749442877657,1.14617622,105700.0,105690.0,0.37109943]
[1749442877858,1.26331252,105700.0,105690.0,0.37109943]
[1749442878565,1.23081252,105700.0,105690.0,0.37109943]
[1749442879070,1.29541252,105700.0,105690.0,0.37109943]
[1749442880266,1.65621252,105700.0,105690.0,0.18195983]
[1749442880565,1.65621252,105700.0,105690.0,0.37109943]
[1749442880865,1.66026912,105700.0,105690.0,0.37109943]
[1749442883468,1.66026912,105700.0,105690.0,0.18195983]
[1749442883670,1.66026912,105700.0,105690.0,0.08935983]
[1749442883671,1.89454172,105700.0,105690.0,0.08935983]
[1749442883861,1.80950542,105700.0,105690.0,0.08935983]
[1749442884061,1.80950542,105700.0,105690.0,0.002]
[1749442889570,1.80950542,105700.0,105690.0,0.09038044]
[1749442890368,1.92664172,105700.0,105690.0,0.09038044]
[1749442890668,1.92664172,105700.0,105690.0,0.002]
[1749442895076,1.8906072,105700.0,105690.0,0.06094393]
[1749442896966,1.8906072,105700.0,105690.0,0.14932437]
[1749442897166,1.8906072,105700.0,105690.0,0.12153837]
[1749442897773,1.1690072,105700.0,105690.0,0.13583706]
[1749442897974,1.1690072,105700.0,105690.0,0.12153837]
[1749442898174,1.92654363,105700.0,105690.0,0.10267913]
[1749442898780,1.92654363,105700.0,105690.0,0.10268913]
[1749442898980,1.92654363,105700.0,105690.0,0.08838044]
[1749442899182,1.92654363,105700.0,105690.0,0.10268913]
[1749442899879,1.92654363,105700.0,105690.0,0.10268787]
[1749442900475,1.20494363,105700.0,105690.0,0.10268795]
[1749442900682,1.92654363,105700.0,105690.0,0.10268795]
[1749442901789,1.92654363,105700.0,105690.0,0.08838044]
[1749442902087,1.92654363,105700.0,105690.0,0.1026869]
[1749442902483,1.20494363,105700.0,105690.0,0.08838044]
[1749442902679,1.92654363,105700.0,105690.0,0.08838044]
[1749442902885,1.92654363,105700.0,105690.0,0.10270355]
[1749442904084,1.20494363,105700.0,105690.0,0.08838044]
[1749442904294,1.92654363,105700.0,105690.0,0.10270536]
[1749442904487,1.92654363,105700.0,105690.0,0.08838044]
[1749442904690,1.92654363,105700.0,105690.0,0.10270536]
[1749442904988,1.92654363,105700.0,105690.0,0.10270468]
[1749442905189,1.20494363,105700.0,105690.0,0.10270468]
[1749442905391,1.92654363,105700.0,105690.0,0.10270477]
[1749442905585,1.92654363,105700.0,105690.0,0.08838044]
[1749442905890,1.92654363,105700.0,105690.0,0.10270477]
[1749442906184,1.20494363,105700.0,105690.0,0.08838044]
[1749442906391,1.92654363,105700.0,105690.0,0.10270477]
[1749442906691,1.20494363,105700.0,105690.0,0.08838044]
[1749442906893,1.20494363,105700.0,105690.0,0.10270477]
[1749442907191,1.92654363,105700.0,105690.0,0.10270477]
[1749442907392,1.57513473,105700.0,105690.0,0.10270473]
[1749442907689,1.92654363,105700.0,105690.0,0.08838044]
[1749442907879,1.20494363,105700.0,105690.0,0.10270474]
[1749442908083,1.92654363,105700.0,105690.0,0.08838044]
[1749442908589,1.92654363,105700.0,105690.0,0.10271071]
[1749442908792,1.92654363,105700.0,105690.0,0.10270921]
[1749442909188,1.92654363,105700.0,105690.0,0.14054921]
[1749442909890,1.92654363,105700.0,105690.0,0.12622044]
[1749442910091,1.92654363,105700.0,105690.0,0.14054921]
[1749442910793,1.92654363,105700.0,105690.0,0.10164248]
[1749442911391,1.92654363,105700.0,105690.0,0.07154249]
[1749442911590,1.92654363,105700.0,105690.0,0.071544]
[1749442912193,0.1891395,105690.0,105680.0,0.11793308]
[1749442912389,0.88314853,105690.0,105680.0,0.11793308]
[1749442912590,0.91604853,105690.0,105680.0,0.11793308]
[1749442913299,0.91604853,105690.0,105680.0,0.11993308]
[1749442913598,0.9331294,105690.0,105680.0,0.00214228]
[1749442914199,0.9331294,105690.0,105680.0,0.03053228]
[1749442914398,0.9331294,105690.0,105680.0,0.03353228]
[1749442914996,1.00969543,105690.0,105680.0,0.03353228]
[1749442917404,1.55563173,105690.0,105680.0,0.03353228]
[1749442917702,1.43849543,105690.0,105680.0,0.03353228]
[1749442917900,1.43926235,105690.0,105680.0,0.03353228]
[1749442920105,1.07846235,105690.0,105680.0,0.03353228]
[1749442920307,1.80006235,105690.0,105680.0,0.03353228]
[1749442924512,2.22918235,105690.0,105680.0,0.03353228]
[1749442925513,2.23323895,105690.0,105680.0,0.03353228]
[1749442925911,1.51163895,105690.0,105680.0,0.03353228]
[1749442926112,2.23323895,105690.0,105680.0,0.03353228]
[1749442926916,2.23318135,105690.0,105680.0,0.03353228]
[1749442927512,1.51158135,105690.0,105680.0,0.03353228]
[1749442927719,2.23318135,105690.0,105680.0,0.03353228]
[1749442928420,2.1965356,105690.0,105680.0,0.03353228]
[1749442928616,2.2331809,105690.0,105680.0,0.03353228]
[1749442932218,2.2331809,105690.0,105680.0,0.12204349]
[1749442932417,2.23317021,105690.0,105680.0,0.12204349]
[1749442934921,0.1891577,105680.0,105670.0,0.1504908]
[1749442935120,1.09968121,105680.0,105670.0,0.0327]
[1749442935310,1.13268121,105680.0,105670.0,0.0327]
[1749442936117,0.1891755,105670.0,105660.0,0.18053308]
[1749442936316,1.2130481,105670.0,105660.0,0.21363308]
[1749442936718,1.0959118,105670.0,105660.0,0.21363308]
[1749442937023,1.2130481,105670.0,105660.0,0.21363308]
[1749442937621,1.2130481,105670.0,105660.0,0.21763308]
[1749442937827,1.2130481,105670.0,105660.0,0.22163308]
[1749442938425,1.2776481,105670.0,105660.0,0.22163308]
[1749442939022,1.31499739,105670.0,105660.0,0.10384228]
[1749442939434,1.31499739,105670.0,105660.0,0.07334228]
[1749442939726,1.34559739,105670.0,105660.0,0.07334228]
[1749442940732,1.34965399,105670.0,105660.0,0.07334228]
[1749442941430,1.34965399,105670.0,105660.0,0.00814228]
[1749442942228,0.59138139,105670.0,105660.0,0.00814228]
[1749442942425,1.11914139,105670.0,105660.0,0.29543568]
[1749442942731,1.23635769,105670.0,105660.0,0.10624228]
[1749442942931,1.23595769,105670.0,105660.0,0.10624228]
[1749442943422,1.23635769,105670.0,105660.0,0.10624228]
[1749442943927,1.23230109,105670.0,105660.0,0.10624228]
[1749442945332,1.23234965,105670.0,105660.0,0.10624228]
[1749442945830,1.23234965,105670.0,105660.0,0.29543568]
[1749442946130,1.23234965,105670.0,105660.0,0.10624228]
[1749442946334,1.19500036,105670.0,105660.0,0.10624228]
[1749442954739,1.19500036,105670.0,105660.0,0.1946893]
[1749442954934,1.19905696,105670.0,105660.0,0.1946893]
[1749442956138,1.19500036,105670.0,105660.0,0.1946893]
[1749442956341,1.19500036,105670.0,105660.0,0.10624228]
[1749442957938,1.55580036,105670.0,105660.0,0.10624228]
[1749442958438,1.55580036,105670.0,105660.0,0.19471487]
[1749442958738,1.55580036,105670.0,105660.0,0.31267832]
[1749442960142,0.83420036,105670.0,105660.0,0.31267832]
[1749442960345,1.4386155,105670.0,105660.0,0.31267832]
[1749442960549,1.59310938,105670.0,105660.0,0.19471487]
[1749442960738,1.65700938,105670.0,105660.0,0.19471487]
[1749442960944,1.65688938,105670.0,105660.0,0.19471487]
[1749442961143,1.66094598,105670.0,105660.0,0.19471487]
[1749442961344,1.66094598,105670.0,105660.0,0.16171487]
[1749442961644,1.69254598,105670.0,105660.0,0.16171487]
[1749442962146,1.69254598,105670.0,105660.0,0.12851487]
[1749442963847,1.69254598,105670.0,105660.0,0.09661487]
[1749442965149,1.57536112,105670.0,105660.0,0.09661487]
[1749442965353,1.69257596,105670.0,105660.0,0.12761487]
[1749442967554,0.97097596,105670.0,105660.0,0.12761487]
[1749442967752,1.69257596,105670.0,105660.0,0.12761487]
[1749442968563,0.97097596,105670.0,105660.0,0.12761487]
[1749442968753,1.69257596,105670.0,105660.0,0.12761487]
[1749442970358,2.12177596,105670.0,105660.0,0.12761487]
[1749442972668,2.12177596,105670.0,105660.0,0.09661487]
[1749442973757,1.40017596,105670.0,105660.0,0.09661487]
[1749442973958,2.12177596,105670.0,105660.0,0.09661487]
[1749442975460,2.12177596,105670.0,105660.0,0.12610573]
[1749442976068,1.44564112,105670.0,105660.0,0.12610573]
[1749442976363,1.44564112,105670.0,105660.0,0.06994228]
[1749442976364,1.49895596,105670.0,105660.0,0.06994228]
[1749442976663,2.02647596,105670.0,105660.0,0.10114228]
[1749442977363,2.02241936,105670.0,105660.0,0.10114228]
[1749442980271,2.08671936,105670.0,105660.0,0.00814228]
[1749442980460,2.1417708,105670.0,105660.0,0.09675022]
[1749442980661,2.2402508,105670.0,105660.0,0.09675022]
[1749442981868,2.2402508,105670.0,105660.0,0.21471367]
[1749442983265,2.24030918,105670.0,105660.0,0.21471367]
[1749442983866,2.24030918,105670.0,105660.0,0.09675022]
[1749442986172,2.12306515,105670.0,105660.0,0.09675022]
[1749442986671,2.24030918,105670.0,105660.0,0.07264023]
[1749442987570,2.23625258,105670.0,105660.0,0.07264023]
[1749442988474,0.1891935,105660.0,105650.0,0.11850573]
[1749442988674,0.91349058,105660.0,105650.0,0.11850573]
[1749442988970,0.91349058,105660.0,105650.0,0.15636573]
[1749442989972,0.91349058,105660.0,105650.0,0.16636573]
[1749442991467,0.91349058,105660.0,105650.0,0.04840228]
[1749442991672,0.87618156,105660.0,105650.0,0.04840228]
[1749442994079,1.11973753,105660.0,105650.0,0.04840228]
[1749442994673,1.23698156,105660.0,105650.0,0.04840228]
[1749442994870,1.27433523,105660.0,105650.0,0.04840228]
[1749442995064,0.1892294,105640.0,105630.0,0.08989218]
[1749442995272,1.55643343,105640.0,105630.0,0.54695714]
[1749442995598,1.55643343,105640.0,105630.0,0.39990283]
[1749442996272,1.4391894,105640.0,105630.0,0.39990283]
[1749442996474,1.55643343,105640.0,105630.0,0.40590283]
[1749442999176,1.55643343,105640.0,105630.0,0.21665553]
[1749442999475,1.55643343,105640.0,105630.0,0.40590283]
[1749442999877,1.56589212,105640.0,105630.0,0.40590283]
[1749443000877,1.56994872,105640.0,105630.0,0.40590283]
[1749443003177,1.56994872,105640.0,105630.0,0.42008678]
[1749443003379,1.56997106,105640.0,105630.0,0.42008678]
[1749443003971,1.56997106,105640.0,105630.0,0.23083948]
[1749443004175,1.56997106,105640.0,105630.0,0.21665553]
[1749443004374,1.56997106,105640.0,105630.0,0.42008645]
[1749443004574,1.56997106,105640.0,105630.0,0.40590283]
[1749443004874,1.56997106,105640.0,105630.0,0.42008658]
[1749443005177,1.56997106,105640.0,105630.0,0.42008649]
[1749443005379,1.56997106,105640.0,105630.0,0.40590283]
[1749443005580,1.56997106,105640.0,105630.0,0.42008649]
[1749443006084,1.56997106,105640.0,105630.0,0.42008797]
[1749443006279,1.56997106,105640.0,105630.0,0.42008796]
[1749443006587,1.56997106,105640.0,105630.0,0.42008797]
[1749443006788,1.56997106,105640.0,105630.0,0.42013335]
[1749443007282,1.56997106,105640.0,105630.0,0.40590283]
[1749443007485,0.84837106,105640.0,105630.0,0.5085673]
[1749443007684,1.56997106,105640.0,105630.0,0.42013335]
[1749443007880,1.56591446,105640.0,105630.0,0.40590283]
[1749443008082,1.56591446,105640.0,105630.0,0.42013335]
[1749443008782,1.56591446,105640.0,105630.0,0.4201383]
[1749443008982,1.56591446,105640.0,105630.0,0.40590283]
[1749443009483,1.68318083,105640.0,105630.0,0.23090289]
[1749443010184,1.68318083,105640.0,105630.0,0.21665553]
[1749443010585,1.68318083,105640.0,105630.0,0.23090298]
[1749443010983,1.68318083,105640.0,105630.0,0.40590283]
[1749443011177,1.68318083,105640.0,105630.0,0.42015028]
[1749443011483,0.84431446,105640.0,105630.0,0.42015028]
[1749443011683,1.56591446,105640.0,105630.0,0.40590283]
[1749443012284,1.56591446,105640.0,105630.0,0.4201509]
[1749443012481,1.56591446,105640.0,105630.0,0.42015081]
[1749443012882,1.56591446,105640.0,105630.0,0.42014364]
[1749443013087,1.56591446,105640.0,105630.0,0.40590283]
[1749443013298,1.56591446,105640.0,105630.0,0.42014364]
[1749443014602,1.56591446,105640.0,105630.0,0.42015483]
[1749443015590,1.56591446,105640.0,105630.0,0.42015481]
[1749443015891,1.13635446,105640.0,105630.0,0.42015481]
[1749443016095,1.56563446,105640.0,105630.0,0.42015481]
[1749443016690,1.56563446,105640.0,105630.0,0.40590283]
[1749443016881,1.56563446,105640.0,105630.0,0.42014764]
[1749443017791,1.56563446,105640.0,105630.0,0.40590283]
[1749443017990,1.44836809,105640.0,105630.0,0.42014937]
[1749443018189,1.56563446,105640.0,105630.0,0.42014937]
[1749443019586,1.56563446,105640.0,105630.0,0.4201504]
[1749443019794,1.56563446,105640.0,105630.0,0.42015041]
[1749443020290,1.56563446,105640.0,105630.0,0.4201504]
[1749443020693,1.56563446,105640.0,105630.0,0.2309031]
[1749443020996,1.56563446,105640.0,105630.0,0.4201504]
[1749443021193,1.56563446,105640.0,105630.0,0.2309031]
[1749443021487,1.56563446,105640.0,105630.0,0.21665553]
[1749443021693,1.56563446,105640.0,105630.0,0.2309031]
[1749443021880,0.84403446,105640.0,105630.0,0.23090412]
[1749443022085,1.56563446,105640.0,105630.0,0.23090532]
[1749443022489,1.56563446,105640.0,105630.0,0.42015262]
[1749443022689,1.56563446,105640.0,105630.0,0.44854262]
[1749443022894,1.56563446,105640.0,105630.0,0.44855828]
[1749443023496,1.56563446,105640.0,105630.0,0.59600895]
[1749443023798,1.56563446,105640.0,105630.0,0.58174714]
[1749443023998,1.56563446,105640.0,105630.0,0.59600895]
[1749443024398,1.56563446,105640.0,105630.0,0.4779556]
[1749443024696,1.56563446,105640.0,105630.0,0.46369379]
[1749443024898,1.56563446,105640.0,105630.0,0.47795553]
[1749443026096,1.56563446,105640.0,105630.0,0.46369379]
[1749443026298,1.56563446,105640.0,105630.0,0.47795458]
[1749443026994,1.56563446,105640.0,105630.0,0.46369379]
[1749443027194,1.03755446,105640.0,105630.0,0.46369379]
[1749443027385,1.56547446,105640.0,105630.0,0.58096016]
[1749443027592,0.92028809,105640.0,105630.0,0.59522181]
[1749443027793,1.44820809,105640.0,105630.0,0.7898874]
[1749443027997,1.44820809,105640.0,105630.0,0.84886913]
[1749443028696,1.56547446,105640.0,105630.0,0.8488532]
[1749443029199,1.44820809,105640.0,105630.0,0.83460748]
[1749443029396,1.44820809,105640.0,105630.0,0.86309855]
[1749443030300,1.03755446,105640.0,105630.0,0.86309855]
[1749443030494,1.60300008,105640.0,105630.0,0.98119795]
[1749443030692,1.60300008,105640.0,105630.0,0.76393158]
[1749443030891,1.07480008,105640.0,105630.0,0.55749556]
[1749443031094,1.60312008,105640.0,105630.0,0.55749557]
[1749443031505,1.60312008,105640.0,105630.0,0.43939617]
[1749443032103,1.60312008,105640.0,105630.0,0.42515063]
[1749443032304,1.24232008,105640.0,105630.0,0.42515063]
[1749443034903,1.12505371,105640.0,105630.0,0.42515063]
[1749443035200,1.24232008,105640.0,105630.0,0.542417]
[1749443036701,1.24232008,105640.0,105630.0,0.839317]
[1749443038506,1.20507446,105640.0,105630.0,0.839317]
[1749443038700,1.20507446,105640.0,105630.0,0.98694126]
[1749443040104,0.84427446,105640.0,105630.0,0.98694126]
[1749443040305,1.20507446,105640.0,105630.0,0.98694126]
[1749443041506,0.84427446,105640.0,105630.0,0.98694126]
[1749443041704,1.20507446,105640.0,105630.0,0.98694126]
[1749443046999,1.08780809,105640.0,105630.0,0.98694126]
[1749443047205,1.20507446,105640.0,105630.0,0.98694126]
[1749443048206,0.84427446,105640.0,105630.0,0.98694126]
[1749443048412,1.20507446,105640.0,105630.0,0.98694126]
[1749443055520,1.20507446,105640.0,105630.0,1.04575304]
[1749443062919,1.20443446,105640.0,105630.0,1.04575304]
[1749443066318,1.08716809,105640.0,105630.0,1.04575304]
[1749443066527,1.20443446,105640.0,105630.0,1.04575304]
[1749443069228,1.20443446,105640.0,105630.0,1.08361304]
[1749443072036,0.84363446,105640.0,105630.0,1.08361304]
[1749443072235,1.20443446,105640.0,105630.0,1.08361304]
[1749443076140,1.20443446,105640.0,105630.0,0.877177]
[1749443077743,1.20443446,105640.0,105630.0,0.78671304]
[1749443078947,1.20443446,105640.0,105630.0,0.79076964]
[1749443080952,1.20443446,105640.0,105630.0,0.78671304]
[1749443081948,1.20443446,105640.0,105630.0,0.79076964]
[1749443082449,1.20463446,105640.0,105630.0,0.83206468]
[1749443083651,0.84383446,105640.0,105630.0,0.83206468]
[1749443085249,0.72656809,105640.0,105630.0,0.83206468]
[1749443085447,0.84375446,105640.0,105630.0,0.83206468]
[1749443088152,0.84375446,105640.0,105630.0,0.82800808]
[1749443088654,0.84375446,105640.0,105630.0,0.680277]
[1749443088854,0.84375446,105640.0,105630.0,0.88671304]
[1749443089059,0.84375446,105640.0,105630.0,0.89076964]
[1749443092752,1.20455446,105640.0,105630.0,0.89076964]
[1749443092961,1.26995446,105640.0,105630.0,0.67350327]
[1749443093250,1.38722083,105640.0,105630.0,0.63564327]
[1749443093455,1.38722083,105640.0,105630.0,0.54314327]
[1749443093642,1.41972083,105640.0,105630.0,0.54354327]
[1749443094357,1.41972083,105640.0,105630.0,0.53948667]
[1749443094557,1.41972083,105640.0,105630.0,0.68679205]
[1749443094861,1.41972083,105640.0,105630.0,0.48075601]
[1749443096160,1.41972083,105640.0,105630.0,0.51861601]
[1749443097158,1.41972083,105640.0,105630.0,0.52267261]
[1749443097658,1.30245446,105640.0,105630.0,0.52267261]
[1749443097960,1.30245446,105640.0,105630.0,0.63993898]
[1749443098362,1.30245446,105640.0,105630.0,0.67063898]
[1749443099960,0.55948809,105640.0,105630.0,0.67063898]
[1749443100175,0.5321278,105670.0,105660.0,0.1891936]
[1749443100176,0.52216228,105670.0,105660.0,0.1891936]
[1749443100478,0.37063213,105670.0,105660.0,0.77143172]
[1749443100669,0.00014228,105670.0,105660.0,1.25406238]
[1749443100863,5.56e-06,105670.0,105660.0,1.38002797]
[1749443101061,0.00040556,105670.0,105660.0,1.17359193]
[1749443101248,0.00040556,105670.0,105660.0,1.56314056]
[1749443101866,0.00440556,105670.0,105660.0,1.56314056]
[1749443102060,0.00440556,105670.0,105660.0,1.26823193]
[1749443102659,0.00240556,105670.0,105660.0,1.26823193]
[1749443102861,0.00040556,105670.0,105660.0,1.26823193]
[1749443103364,0.00040556,105670.0,105660.0,1.35685907]
[1749443103663,5.56e-06,105670.0,105660.0,1.35685907]
[1749443103863,0.00040556,105670.0,105660.0,1.50266785]
[1749443104757,0.00040556,105670.0,105660.0,1.50366785]
[1749443105061,0.00040556,105670.0,105660.0,1.580593]
[1749443105267,0.00040556,105670.0,105660.0,1.5214102]
[1749443106857,0.00040556,105670.0,105660.0,1.4267702]
[1749443108169,0.00040556,105670.0,105660.0,1.3267702]
[1749443112266,0.18958126,105670.0,105660.0,1.20962142]
[1749443112568,0.55038126,105670.0,105660.0,0.84882142]
[1749443112766,0.55038126,105670.0,105660.0,0.81925381]
[1749443113072,0.55038126,105670.0,105660.0,0.70199312]
[1749443113269,0.55038126,105670.0,105660.0,0.94882142]
[1749443113471,0.36120556,105670.0,105660.0,0.94882142]
[1749443114272,0.00040556,105670.0,105660.0,1.30962142]
[1749443114670,0.00240556,105670.0,105660.0,1.30862142]
[1749443116075,0.00240556,105670.0,105660.0,1.4257702]
[1749443118789,0.00240556,105670.0,105660.0,1.30862142]
[1749443124385,0.00240556,105670.0,105660.0,1.51463252]
[1749443125092,0.00240556,105670.0,105660.0,1.36780422]
[1749443125291,0.00240556,105670.0,105660.0,1.4850176]
[1749443128388,0.00240556,105670.0,105660.0,1.2790065]
[1749443128585,0.00240556,105670.0,105660.0,1.16182542]
[1749443128892,0.00240556,105670.0,105660.0,1.19967542]
[1749443129088,0.00240556,105670.0,105660.0,1.49458405]
[1749443129797,0.06790556,105670.0,105660.0,1.49458405]
[1749443134090,0.25708126,105670.0,105660.0,0.92220297]
[1749443134295,0.25708126,105670.0,105660.0,0.9624589]
[1749443134296,0.73506234,105670.0,105660.0,0.9624589]
[1749443134498,0.73506234,105670.0,105660.0,0.8624589]
[1749443134796,0.73506234,105670.0,105660.0,0.56755027]
[1749443134996,0.73506234,105670.0,105660.0,0.77404986]
[1749443135490,0.61788126,105670.0,105660.0,0.77404986]
[1749443135690,0.61788126,105670.0,105660.0,0.87404986]
[1749443136095,0.61788126,105670.0,105660.0,0.77404986]
[1749443139792,0.61788126,105670.0,105660.0,0.65686878]
[1749443139992,0.42870556,105670.0,105660.0,0.77404986]
[1749443140897,0.43276216,105670.0,105660.0,0.77404986]
[1749443141298,0.43276216,105670.0,105660.0,0.67404986]
[1749443141898,0.42870556,105670.0,105660.0,0.67404986]
[1749443143093,0.42870556,105670.0,105660.0,0.97318283]
[1749443143299,0.42870556,105670.0,105660.0,0.97317933]
[1749443143598,0.61788126,105670.0,105660.0,0.97317933]
[1749443143803,0.61788126,105670.0,105660.0,0.82575027]
[1749443145094,0.61788126,105670.0,105660.0,0.52885027]
[1749443146405,0.61788126,105670.0,105660.0,0.62885027]
[1749443147698,0.61788126,105670.0,105660.0,0.59855027]
[1749443151107,0.61788126,105670.0,105660.0,0.80496071]
[1749443151610,1.04672126,105670.0,105660.0,0.80496071]
[1749443153206,1.04672126,105670.0,105660.0,0.59855027]
[1749443153404,1.14528126,105670.0,105660.0,0.59855027]
[1749443161211,1.37964342,105670.0,105660.0,0.2557036]
[1749443161414,1.40994342,105670.0,105660.0,0.40319989]
[1749443161711,1.29276234,105670.0,105660.0,0.40319989]
[1749443163009,1.29276234,105670.0,105660.0,0.52113447]
[1749443163314,1.29276234,105670.0,105660.0,0.37363818]
[1749443167918,1.65356234,105670.0,105660.0,0.37363818]
[1749443169327,0.93196234,105670.0,105660.0,0.37363818]
[1749443169519,1.65356234,105670.0,105660.0,0.37363818]
[1749443170325,1.77074342,105670.0,105660.0,0.37363818]
[1749443170714,1.65356234,105670.0,105660.0,0.2557036]
[1749443171013,1.65356234,105670.0,105660.0,0.37363818]
[1749443171314,1.65356234,105670.0,105660.0,0.2557036]
[1749443171819,1.65356234,105670.0,105660.0,0.37363818]
[1749443173023,1.65356234,105670.0,105660.0,0.06651]
[1749443173523,1.65356234,105670.0,105660.0,0.2557036]
[1749443174621,1.77074342,105670.0,105660.0,0.2557036]
[1749443174926,1.65356234,105670.0,105660.0,0.2557036]
[1749443177530,1.65761894,105670.0,105660.0,0.2557036]
[1749443178427,1.65356234,105670.0,105660.0,0.2557036]
[1749443180233,1.65356234,105670.0,105660.0,0.37363818]
[1749443182137,0.93196234,105670.0,105660.0,0.37363818]
[1749443182435,1.65356234,105670.0,105660.0,0.37363818]
[1749443186534,1.65356234,105670.0,105660.0,0.52113447]
[1749443188154,1.65356234,105670.0,105660.0,0.33194087]
[1749443188334,1.77074342,105670.0,105660.0,0.33201699]
[1749443188537,1.77074342,105670.0,105660.0,0.1845207]
[1749443188746,1.80778869,105670.0,105660.0,0.15503273]
[1749443190346,1.80778869,105670.0,105660.0,0.06651]
[1749443193745,2.23698869,105670.0,105660.0,0.06651]
[1749443196245,2.00262653,105670.0,105660.0,0.06651]
[1749443196445,2.23698869,105670.0,105660.0,0.06651]
[1749443197851,2.00262653,105670.0,105660.0,0.06651]
[1749443198045,1.47522653,105670.0,105660.0,0.06651]
[1749443198242,2.02444761,105670.0,105660.0,0.15503273]
[1749443198444,2.02404761,105670.0,105660.0,0.24953273]
[1749443198648,1.98700234,105670.0,105660.0,0.24953273]
[1749443198950,1.98768234,105670.0,105660.0,0.25358933]
[1749443199452,2.05048234,105670.0,105660.0,0.25358933]
[1749443200052,2.08731621,105670.0,105660.0,0.25358933]
[1749443203255,2.08735003,105670.0,105660.0,0.25358933]
[1749443206956,1.36575003,105670.0,105660.0,0.25358933]
[1749443207159,2.08735003,105670.0,105660.0,0.25358933]
[1749443209358,1.37921513,105670.0,105660.0,0.44278293]
[1749443209556,2.02463003,105670.0,105660.0,0.44278293]
[1749443209957,2.02423003,105670.0,105660.0,0.44278293]
[1749443210148,2.02463003,105670.0,105660.0,0.44278293]
[1749443210960,1.98779616,105670.0,105660.0,0.44278293]
[1749443212159,1.98779616,105670.0,105660.0,0.3542602]
[1749443212362,1.98779616,105670.0,105660.0,0.44264218]
[1749443212556,1.98779616,105670.0,105660.0,0.3542602]
[1749443214360,2.02468184,105670.0,105660.0,0.3542602]
[1749443215259,1.98779616,105670.0,105660.0,0.4722709]
[1749443216059,1.98779616,105670.0,105660.0,0.4682143]
[1749443217161,1.98779616,105670.0,105660.0,0.4722709]
[1749443221163,1.98779616,105670.0,105660.0,0.4682143]
[1749443221360,1.98779616,105670.0,105660.0,0.2790207]
[1749443221564,2.20543432,105670.0,105660.0,0.15493291]
[1749443221759,2.12121942,105670.0,105660.0,0.15493291]
[1749443222166,2.12121942,105670.0,105660.0,0.15898951]
[1749443223365,2.12121942,105670.0,105660.0,0.15493291]
[1749443225367,2.23849286,105670.0,105660.0,0.15493291]
[1749443226966,2.12124869,105670.0,105660.0,0.15493291]
[1749443228269,2.12124869,105670.0,105660.0,0.15898951]
[1749443230969,1.59264869,105670.0,105660.0,0.15898951]
[1749443231163,2.00456452,105670.0,105660.0,0.34818311]
[1749443231468,2.12140869,105670.0,105660.0,0.34818311]
[1749443231669,2.12180869,105670.0,105660.0,0.34818311]
[1749443231869,2.12180869,105670.0,105660.0,0.15898951]
[1749443232770,2.08880869,105670.0,105660.0,0.34818311]
[1749443232963,2.08880869,105670.0,105660.0,0.37918311]
[1749443233161,2.08880869,105670.0,105660.0,0.18998951]
[1749443234096,2.11940869,105670.0,105660.0,0.18998951]
[1749443235070,2.11929176,105670.0,105660.0,0.18998951]
[1749443236471,2.11929176,105670.0,105660.0,0.18593291]
[1749443237372,2.11929176,105670.0,105660.0,0.18998951]
[1749443238868,2.11929176,105670.0,105660.0,0.37918311]
[1749443238869,1.37928759,105670.0,105660.0,0.37918311]
[1749443239072,1.49653176,105670.0,105660.0,0.59021507]
[1749443239261,1.98830543,105670.0,105660.0,0.59021507]
[1749443239467,1.98790543,105670.0,105660.0,0.59021507]
[1749443239663,1.98830543,105670.0,105660.0,0.59021507]
[1749443239971,1.98830543,105670.0,105660.0,0.4729709]
[1749443241388,1.98824654,105670.0,105660.0,0.4729709]
[1749443241566,1.87106126,105670.0,105660.0,0.4729709]
[1749443241766,1.98824654,105670.0,105660.0,0.4729709]
[1749443249890,1.98824654,105670.0,105660.0,0.62046719]
[1749443253586,1.55904654,105670.0,105660.0,0.62046719]
[1749443254889,1.44146126,105670.0,105660.0,0.91736719]
[1749443255286,1.44186126,105670.0,105660.0,0.91736719]
[1749443255787,1.44186126,105670.0,105660.0,0.91331059]
[1749443256689,1.44186126,105670.0,105660.0,0.91736719]
[1749443257987,1.01218126,105670.0,105660.0,0.91736719]
[1749443258186,1.44186126,105670.0,105660.0,0.91736719]
[1749443261297,1.55905179,105670.0,105660.0,1.03455772]
[1749443262297,1.55905179,105670.0,105660.0,0.91654702]
[1749443262595,1.55889179,105670.0,105660.0,0.91654702]
[1749443268898,1.44170126,105670.0,105660.0,0.91654702]
[1749443269098,1.55889179,105670.0,105660.0,0.91654702]
[1749443275302,1.19809179,105670.0,105660.0,0.91654702]
[1749443276504,0.83729179,105670.0,105660.0,0.91654702]
[1749443276702,1.19809179,105670.0,105660.0,0.91654702]
[1749443279695,1.19809179,105670.0,105660.0,0.88704565]
[1749443280095,1.19809179,105670.0,105660.0,0.91654702]
[1749443280504,1.08054126,105670.0,105660.0,1.21759617]
[1749443280803,1.08054126,105670.0,105660.0,1.3347867]
[1749443281198,1.08054126,105670.0,105660.0,1.21759617]
[1749443281505,1.08014126,105670.0,105660.0,1.21759617]
[1749443281707,0.66957179,105670.0,105660.0,1.10040564]
[1749443281908,1.33236215,105670.0,105660.0,0.68229891]
[1749443282207,1.33236215,105670.0,105660.0,0.38539891]
[1749443282506,1.33236215,105670.0,105660.0,0.35439891]
[1749443283099,1.33236215,105670.0,105660.0,0.35034231]
[1749443284110,1.33236215,105670.0,105660.0,0.35439891]
[1749443288011,1.33236215,105670.0,105660.0,0.65129891]